bitfinex-derivatives/quotes_BTCF0:USTF0_20251119
["timestamp","ask_amount","ask_price","bid_price","bid_amount"]
[1763570268890,0.111764,89542.0,89538.0,0.04736803]
[1763570269197,0.46968,89545.0,89538.0,0.04736803]
[1763570269198,0.112767,89539.0,89538.0,0.04736803]
[1763570269893,0.001,89539.0,89538.0,0.04736803]
[1763570270695,0.1117668,89540.0,89539.0,0.04517]
[1763570270897,0.2206395,89545.0,89544.0,0.05907]
[1763570271198,0.2206395,89545.0,89544.0,0.06126803]
[1763570271588,0.10888,89545.0,89544.0,0.42206803]
[1763570271789,0.00016756,89549.0,89544.0,0.42206803]
[1763570271790,0.00016756,89549.0,89548.0,0.1569258]
[1763570271987,0.00016756,89549.0,89548.0,0.21926592]
[1763570272190,0.00016756,89549.0,89548.0,0.15912383]
[1763570273492,0.00116756,89549.0,89548.0,0.15912383]
[1763570273989,0.00216756,89549.0,89548.0,0.15912383]
[1763570274593,0.00116756,89549.0,89548.0,0.15912383]
[1763570274997,0.00016756,89549.0,89548.0,0.04736803]
[1763570275501,0.02316756,89549.0,89548.0,0.04736803]
[1763570276697,0.00016756,89549.0,89548.0,0.04736803]
[1763570279008,0.04627756,89549.0,89548.0,0.04736803]
[1763570279604,0.00016756,89549.0,89548.0,0.04736803]
[1763570280306,0.40707756,89549.0,89548.0,0.00219803]
[1763570280509,0.1578833,89534.0,89533.0,0.02266]
[1763570280804,0.1578833,89534.0,89533.0,0.00219803]
[1763570281212,0.1579032,89518.0,89516.0,0.06011115]
[1763570281400,0.1579032,89518.0,89517.0,0.00219803]
[1763570281902,0.1579032,89518.0,89517.0,0.02485803]
[1763570282101,0.1579032,89518.0,89517.0,0.00219803]
[1763570282509,0.00016756,89526.0,89525.0,0.04343]
[1763570282696,0.00016756,89526.0,89525.0,0.40642803]
[1763570282897,0.3608,89552.0,89547.0,0.02234]
[1763570282898,0.02296,89548.0,89547.0,0.02234]
[1763570283204,0.10884,89550.0,89525.0,0.36299803]
[1763570283205,0.1560995,89537.0,89536.0,0.3608]
[1763570283708,0.1117768,89532.0,89527.0,0.1117811]
[1763570283908,0.1117758,89532.0,89531.0,0.02453803]
[1763570284108,0.1347358,89532.0,89531.0,0.02453803]
[1763570284307,0.1561058,89532.0,89531.0,0.00219803]
[1763570285399,0.3608,89535.0,89534.0,0.04343]
[1763570285603,0.3608,89535.0,89534.0,0.04562803]
[1763570286013,0.001,89537.0,89536.0,0.04343]
[1763570286209,0.00016756,89540.0,89539.0,0.04343]
[1763570286402,0.00016756,89540.0,89539.0,0.04562803]
[1763570286604,0.04449756,89540.0,89539.0,0.00219803]
[1763570286903,0.00016756,89540.0,89539.0,0.04562803]
[1763570287311,0.02312756,89540.0,89539.0,0.04562803]
[1763570289211,0.00016756,89540.0,89539.0,0.04562803]
[1763570290800,0.10884,89557.0,89539.0,0.04562803]
[1763570290801,0.2205846,89557.0,89556.0,0.04343]
[1763570291008,0.2205846,89557.0,89556.0,0.04562803]
[1763570291610,0.1117343,89566.0,89559.0,0.04343]
[1763570291807,0.1117343,89566.0,89557.0,0.01374]
[1763570291808,0.4725273,89571.0,89570.0,0.05717]
[1763570292115,0.4954873,89571.0,89570.0,0.05936803]
[1763570292515,0.3608,89571.0,89570.0,0.05936803]
[1763570293007,0.3618,89571.0,89570.0,0.05936803]
[1763570293203,0.40613,89571.0,89570.0,0.04562803]
[1763570293406,0.40713,89571.0,89570.0,0.04562803]
[1763570293712,0.40713,89571.0,89570.0,0.00219803]
[1763570294113,0.40713,89571.0,89562.0,0.00016747]
[1763570294114,0.1560671,89563.0,89562.0,0.00016747]
[1763570294310,0.1560671,89563.0,89562.0,0.0023655]
[1763570294612,0.5168671,89563.0,89562.0,0.0023655]
[1763570295208,0.40513,89563.0,89562.0,0.0023655]
[1763570295404,0.38376,89563.0,89562.0,0.0457955]
[1763570295608,0.001,89563.0,89562.0,0.0457955]
[1763570296020,0.3608,89571.0,89563.0,0.1117371]
[1763570296317,0.3608,89571.0,89562.0,0.0023655]
[1763570296318,0.40513,89571.0,89570.0,0.00219803]
[1763570297013,0.51397,89571.0,89570.0,0.00219803]
[1763570297214,0.51397,89571.0,89562.0,0.00016747]
[1763570297215,0.1560671,89563.0,89562.0,0.00016747]
[1763570297414,0.5168671,89563.0,89562.0,0.00016747]
[1763570297626,0.5168671,89563.0,89545.0,0.3608]
[1763570297627,0.04433,89546.0,89545.0,0.3608]
[1763570297811,0.04433,89546.0,89545.0,0.36299803]
[1763570298117,0.10884,89549.0,89548.0,0.04343]
[1763570298324,0.15317,89549.0,89548.0,0.00219803]
[1763570299315,0.1560945,89541.0,89540.0,0.00016747]
[1763570299618,0.1560945,89541.0,89540.0,0.0023655]
[1763570299919,0.04433,89541.0,89540.0,0.0023655]
[1763570300619,0.04433,89541.0,89540.0,0.1141313]
[1763570301009,0.1560945,89541.0,89540.0,0.0023655]
[1763570302210,0.1570945,89541.0,89540.0,0.0023655]
[1763570304219,0.1570945,89541.0,89540.0,0.00016747]
[1763570304614,0.156502,89527.0,89526.0,0.00027925]
[1763570304824,0.1565182,89514.0,89505.0,0.01374]
[1763570305013,0.581422,89527.0,89486.0,0.10022249]
[1763570305014,0.1118128,89503.0,89498.0,0.40678]
[1763570305315,0.04472,89502.0,89501.0,0.00219803]
[1763570305722,0.04472,89502.0,89501.0,0.11401243]
[1763570305906,0.04481961,89502.0,89501.0,0.00219803]
[1763570306313,9.961e-05,89502.0,89501.0,0.04817803]
[1763570309420,0.11191281,89502.0,89501.0,0.04817803]
[1763570309813,9.961e-05,89502.0,89501.0,0.04817803]
[1763570313018,0.04339961,89502.0,89501.0,0.04817803]
[1763570313224,9.961e-05,89502.0,89501.0,0.15862253]
[1763570315510,9.961e-05,89502.0,89501.0,0.04680803]
[1763570316320,0.11191281,89502.0,89501.0,0.04680803]
[1763570316818,9.961e-05,89502.0,89501.0,0.04680803]
[1763570317524,0.00016756,89510.0,89509.0,0.04512]
[1763570317714,0.00016756,89510.0,89509.0,0.00219803]
[1763570317715,0.04383756,89510.0,89509.0,0.00219803]
[1763570317909,0.04383756,89510.0,89509.0,0.02542803]
[1763570318118,0.00016756,89510.0,89509.0,0.04731803]
[1763570320822,0.11178,89529.0,89528.0,0.1117775]
[1763570321024,0.11178,89529.0,89528.0,0.15909553]
[1763570321218,0.11178,89529.0,89528.0,0.04731803]
[1763570321628,0.1117764,89532.0,89531.0,0.1336643]
[1763570321923,0.1117764,89532.0,89531.0,0.04731803]
[1763570322118,0.00016756,89540.0,89531.0,0.04731803]
[1763570322119,0.00016756,89540.0,89539.0,0.04512]
[1763570322320,0.00016756,89540.0,89539.0,0.04731803]
[1763570322511,0.04383756,89540.0,89539.0,0.04731803]
[1763570322822,0.3608,89556.0,89539.0,0.40811803]
[1763570323020,0.1117597,89545.0,89544.0,0.04512]
[1763570323221,0.1554297,89545.0,89544.0,0.04731803]
[1763570323522,0.04367,89545.0,89544.0,0.06009803]
[1763570323724,0.3608,89556.0,89548.0,0.04512]
[1763570323725,0.1117557,89549.0,89548.0,0.04512]
[1763570323928,0.1117557,89549.0,89548.0,0.04731803]
[1763570324121,0.1344257,89549.0,89548.0,0.04731803]
[1763570324316,0.1117557,89549.0,89548.0,0.04731803]
[1763570324511,0.1554257,89549.0,89548.0,0.04731803]
[1763570324723,0.3608,89556.0,89548.0,0.04731803]
[1763570324927,0.1117533,89550.0,89549.0,0.1117545]
[1763570325117,0.3608,89556.0,89555.0,0.04512]
[1763570325319,0.3608,89556.0,89555.0,0.04731803]
[1763570325518,0.4725458,89556.0,89555.0,0.04731803]
[1763570325720,0.5162158,89556.0,89555.0,0.00219803]
[1763570325925,0.5172158,89556.0,89555.0,0.00219803]
[1763570326126,0.1554345,89541.0,89540.0,0.00016756]
[1763570326325,0.1554345,89541.0,89540.0,0.00236559]
[1763570327424,0.1564345,89541.0,89540.0,0.00236559]
[1763570328423,0.1574345,89541.0,89540.0,0.00016756]
[1763570329022,0.1574345,89541.0,89523.0,0.04512]
[1763570329023,0.1117859,89524.0,89523.0,0.04512]
[1763570329221,0.1117859,89524.0,89523.0,0.04731803]
[1763570329727,0.1344518,89528.0,89527.0,0.02323]
[1763570329927,0.1554518,89528.0,89527.0,0.02542803]
[1763570330628,0.04367,89528.0,89527.0,0.02542803]
[1763570330829,0.1554508,89528.0,89527.0,0.02542803]
[1763570331218,0.1554508,89528.0,89527.0,0.00219803]
[1763570333226,0.1564508,89528.0,89527.0,0.02542803]
[1763570333530,0.1564508,89528.0,89527.0,0.00219803]
[1763570334125,0.1354508,89528.0,89527.0,0.04731803]
[1763570334429,0.5162445,89533.0,89532.0,0.02323]
[1763570334629,0.04367,89528.0,89527.0,0.02323]
[1763570334830,0.1554507,89528.0,89527.0,0.00219803]
[1763570335138,0.04367,89528.0,89527.0,0.02542803]
[1763570335434,0.04467,89528.0,89527.0,0.00219803]
[1763570335827,0.04567,89528.0,89527.0,0.00219803]
[1763570336028,0.04467,89528.0,89527.0,0.00219803]
[1763570337334,0.04467,89528.0,89519.0,0.00016756]
[1763570337335,0.04367,89520.0,89519.0,0.00016756]
[1763570337531,0.5162608,89520.0,89519.0,0.00016756]
[1763570337732,0.5162608,89520.0,89519.0,0.00236559]
[1763570338445,0.1554507,89528.0,89527.0,0.04512]
[1763570338738,0.2652507,89528.0,89527.0,0.00219803]
[1763570339129,0.2642507,89528.0,89527.0,0.00219803]
[1763570339725,0.2652507,89528.0,89527.0,0.00219803]
[1763570340231,0.2642507,89528.0,89527.0,0.00219803]
[1763570340540,0.2652507,89528.0,89527.0,0.00219803]
[1763570341028,0.1098,89528.0,89527.0,0.04731803]
[1763570341230,0.001,89528.0,89527.0,0.04731803]
[1763570341526,0.1117376,89563.0,89527.0,0.04731803]
[1763570341527,0.3608,89563.0,89562.0,0.0579]
[1763570341728,0.3608,89583.0,89565.0,0.1555346]
[1763570341932,0.000279,89606.0,89587.0,0.0438]
[1763570342127,0.13434162,89605.0,89591.0,0.0438]
[1763570342326,0.1088,89605.0,89593.0,0.1116993]
[1763570342532,0.15274,89605.0,89604.0,0.00219803]
[1763570343330,0.51454,89605.0,89604.0,0.00219803]
[1763570343526,0.15374,89605.0,89604.0,0.00219803]
[1763570344340,0.2654247,89605.0,89604.0,0.00219803]
[1763570344937,0.1088,89605.0,89604.0,0.04599803]
[1763570345140,0.15274,89605.0,89604.0,0.00219803]
[1763570345646,0.000279,89606.0,89605.0,0.0438]
[1763570345831,0.000279,89606.0,89605.0,0.04599803]
[1763570346155,0.3608,89637.0,89626.0,0.0438]
[1763570346331,0.11191248,89646.0,89638.0,0.02104]
[1763570346532,0.3608,89643.0,89638.0,0.04599803]
[1763570346733,0.3608,89643.0,89642.0,0.0438]
[1763570346934,0.3608,89643.0,89642.0,0.04599803]
[1763570347332,0.00027888,89646.0,89645.0,0.0438]
[1763570347537,0.00027888,89646.0,89645.0,0.04599803]
[1763570347935,0.00016735,89651.0,89650.0,0.0438]
[1763570348248,0.00016735,89651.0,89650.0,0.04599803]
[1763570348743,0.00016735,89651.0,89620.0,0.21078696]
[1763570348744,0.04394,89635.0,89620.0,0.21078696]
[1763570348948,0.3608,89641.0,89634.0,0.04616538]
[1763570349145,0.36296735,89651.0,89640.0,0.0438]
[1763570349340,0.36396735,89651.0,89650.0,0.04599803]
[1763570349545,0.00316735,89651.0,89650.0,0.04599803]
[1763570350141,0.00116735,89651.0,89650.0,0.04599803]
[1763570350746,0.10876,89673.0,89650.0,0.04599803]
[1763570350747,0.3608,89678.0,89672.0,0.0438]
[1763570350946,0.3608,89687.0,89685.0,0.0438]
[1763570351243,0.3608,89687.0,89685.0,0.04599803]
[1763570351244,0.1115837,89687.0,89685.0,0.04599803]
[1763570351449,0.40501875,89686.0,89685.0,0.00219803]
[1763570352048,0.40501875,89686.0,89677.0,0.00016725]
[1763570352049,0.1555338,89678.0,89677.0,0.00016725]
[1763570352248,0.5163338,89678.0,89677.0,0.00236528]
[1763570352546,0.1116149,89661.0,89660.0,0.23182696]
[1763570352740,0.15775285,89661.0,89660.0,0.00073275]
[1763570353536,0.15775285,89661.0,89642.0,0.01308]
[1763570353537,0.1116249,89654.0,89652.0,0.00016725]
[1763570353740,0.00219795,89653.0,89652.0,0.04396725]
[1763570353943,0.00016725,89669.0,89668.0,0.0438]
[1763570354145,0.0023652,89669.0,89668.0,0.04453275]
[1763570354342,0.0023652,89669.0,89668.0,0.00073275]
[1763570354343,0.0463052,89669.0,89668.0,0.00073275]
[1763570354544,0.1555537,89662.0,89661.0,0.3608]
[1763570354741,0.00219795,89662.0,89661.0,0.40533275]
[1763570354943,0.00016725,89669.0,89668.0,0.0438]
[1763570355147,0.00016725,89669.0,89668.0,0.04453275]
[1763570355540,0.3608,89697.0,89685.0,0.0438]
[1763570355541,0.1115724,89696.0,89685.0,0.0438]
[1763570355756,0.3608,89697.0,89685.0,0.0438]
[1763570355757,0.0024767,89686.0,89685.0,0.04453275]
[1763570356048,0.00027875,89686.0,89685.0,0.04453275]
[1763570356643,0.00016725,89694.0,89693.0,0.0438]
[1763570356950,0.0023652,89694.0,89693.0,0.04453275]
[1763570357948,0.1555338,89678.0,89677.0,0.00016725]
[1763570358256,0.51853175,89678.0,89660.0,0.21078696]
[1763570358456,0.1116103,89665.0,89660.0,0.02104]
[1763570358652,0.3608,89668.0,89660.0,0.25458696]
[1763570358960,0.36299803,89668.0,89667.0,0.0438]
[1763570359249,0.1116075,89667.0,89660.0,0.21078696]
[1763570359455,0.00219803,89667.0,89666.0,0.0438]
[1763570359854,0.00016725,89676.0,89675.0,0.02104]
[1763570360057,0.00236528,89676.0,89675.0,0.0438]
[1763570360245,0.00236528,89676.0,89675.0,0.05688]
[1763570360847,0.00016725,89676.0,89675.0,0.05688]
[1763570361448,0.3608,89688.0,89687.0,0.0438]
[1763570361657,0.3608,89688.0,89672.0,0.3608]
[1763570361658,0.1115925,89679.0,89672.0,0.3608]
[1763570361857,0.00219803,89678.0,89677.0,0.0438]
[1763570362252,0.00219803,89678.0,89672.0,0.3608]
[1763570362447,0.15554,89673.0,89672.0,0.3608]
[1763570362653,0.15773803,89673.0,89672.0,0.3608]
[1763570363360,0.00219803,89673.0,89672.0,0.4046]
[1763570363757,0.02482803,89673.0,89672.0,0.3608]
[1763570363947,0.04613803,89673.0,89672.0,0.3608]
[1763570364657,0.04613803,89673.0,89672.0,0.0392952]
[1763570364860,0.04713803,89673.0,89672.0,1e-07]
[1763570365058,0.1555475,89667.0,89666.0,0.00016725]
[1763570365247,0.04394,89660.0,89659.0,0.00010269]
[1763570365557,0.04613803,89660.0,89659.0,0.00010269]
[1763570365861,0.00219803,89660.0,89659.0,0.00010269]
[1763570367159,0.00319803,89660.0,89659.0,0.00010269]
[1763570367660,0.00419803,89660.0,89659.0,0.00010269]
[1763570368059,0.00319803,89660.0,89659.0,0.00010269]
[1763570368257,0.00319803,89660.0,89655.0,0.31492349]
[1763570368446,0.04252,89656.0,89655.0,0.31492349]
[1763570368653,0.00219803,89656.0,89655.0,0.31492349]
[1763570368850,0.00219803,89656.0,89655.0,0.33745349]
[1763570369055,0.04471803,89656.0,89655.0,0.31492349]
[1763570369249,0.04484837,89656.0,89655.0,0.31492349]
[1763570369961,0.44484837,89656.0,89655.0,0.07188055]
[1763570370160,0.00334,89652.0,89620.0,0.21078696]
[1763570370466,0.00219803,89651.0,89620.0,0.21078696]
[1763570370659,0.00219803,89651.0,89630.0,0.21078696]
[1763570370958,0.00219803,89651.0,89620.0,0.21078696]
[1763570371163,0.21078696,89650.0,89614.0,0.00012056]
[1763570371461,0.00016735,89644.0,89627.0,0.00016735]
[1763570371764,0.00219803,89628.0,89627.0,0.00016735]
[1763570371952,0.00228462,89628.0,89627.0,0.00016735]
[1763570373053,0.00228462,89628.0,89627.0,5e-08]
[1763570373655,0.00228462,89628.0,89627.0,0.02253005]
[1763570373958,0.00228462,89628.0,89627.0,0.04479005]
[1763570375061,0.0358,89638.0,89637.0,0.04404]
[1763570375455,0.00016735,89644.0,89643.0,0.04404]
[1763570375668,0.00236538,89644.0,89643.0,0.04404]
[1763570376058,0.00241931,89644.0,89643.0,0.04404]
[1763570376465,0.00341931,89644.0,89643.0,0.04404]
[1763570376865,0.00341931,89644.0,89632.0,0.01351]
[1763570376866,0.00341931,89644.0,89640.0,0.01351]
[1763570377367,0.00341931,89644.0,89643.0,0.04404]
[1763570377972,0.00241931,89644.0,89643.0,0.04404]
[1763570379770,0.00341931,89644.0,89643.0,0.04404]
[1763570380165,0.00341931,89644.0,89632.0,0.01351]
[1763570380366,0.00341931,89644.0,89640.0,0.01351]
[1763570381072,0.00341931,89644.0,89632.0,0.01351]
[1763570382869,0.00341931,89644.0,89642.0,0.01351]
[1763570383072,0.00241931,89644.0,89642.0,0.01351]
[1763570383270,0.00241931,89644.0,89643.0,0.04404]
[1763570383473,0.00241931,89644.0,89642.0,0.01351]
[1763570384273,0.00341931,89644.0,89642.0,0.01351]
[1763570385685,0.00341931,89644.0,89632.0,0.01351]
[1763570385972,0.21078696,89642.0,89600.0,0.01343]
[1763570386171,0.00219803,89628.0,89610.0,0.21078696]
[1763570386373,0.00219803,89628.0,89627.0,0.04404005]
[1763570387667,0.00022128,89644.0,89642.0,0.01351]
[1763570387975,0.00219803,89643.0,89642.0,0.01351]
[1763570388869,0.00219803,89643.0,89642.0,0.05755]
[1763570389075,0.00319803,89643.0,89642.0,0.03529]
[1763570389778,0.00319803,89643.0,89642.0,0.01351]
[1763570390274,0.02824623,89643.0,89642.0,0.01351]
[1763570390663,0.02824623,89643.0,89628.0,0.01351]
[1763570390865,0.0250482,89642.0,89628.0,0.01351]
[1763570391069,0.00219803,89629.0,89628.0,0.05755]
[1763570394576,0.00219803,89629.0,89628.0,0.03529]
[1763570394784,0.00219803,89629.0,89627.0,5e-08]
[1763570394977,0.02510119,89628.0,89627.0,5e-08]
[1763570395173,0.02729922,89628.0,89627.0,5e-08]
[1763570395676,0.02735315,89628.0,89627.0,5e-08]
[1763570398179,0.02735315,89628.0,89627.0,0.04404005]
[1763570399776,0.00225196,89628.0,89627.0,0.04404005]
[1763570400879,0.00225196,89628.0,89627.0,5e-08]
[1763570401080,0.02729891,89628.0,89627.0,5e-08]
[1763570401384,0.00225196,89628.0,89627.0,0.04404005]
[1763570401768,0.02729074,89628.0,89627.0,0.04404005]
[1763570401973,0.02729074,89628.0,89627.0,5e-08]
[1763570402373,0.02729074,89628.0,89627.0,0.04291005]
[1763570402584,0.00225196,89628.0,89627.0,0.04291005]
[1763570404083,5.393e-05,89628.0,89627.0,0.04291005]
[1763570404378,0.00225196,89628.0,89627.0,5e-08]
[1763570404579,0.02703358,89628.0,89627.0,5e-08]
[1763570405979,0.02703358,89628.0,89600.0,0.01343]
[1763570405980,0.06642311,89628.0,89614.0,1e-08]
[1763570406189,0.03955192,89618.0,89614.0,1e-08]
[1763570406379,0.04174995,89615.0,89614.0,1e-08]
[1763570406581,0.02697965,89615.0,89614.0,1e-08]
[1763570406782,0.02697965,89615.0,89592.0,0.01317]
[1763570406972,0.014,89587.0,89568.0,0.01317]
[1763570407176,0.00119803,89587.0,89586.0,0.05742]
[1763570407579,0.11290513,89587.0,89586.0,0.05742]
[1763570407775,0.11300304,89587.0,89586.0,0.05742]
[1763570408582,0.12700304,89587.0,89586.0,0.05742]
[1763570408784,0.12800304,89587.0,89586.0,0.001]
[1763570408983,0.12900304,89587.0,89586.0,0.001]
[1763570409189,0.12900304,89587.0,89586.0,0.02231]
[1763570409486,0.11500304,89587.0,89586.0,0.04391]
[1763570410082,0.12200304,89587.0,89586.0,0.04391]
[1763570410284,0.1332971,89579.0,89578.0,0.00016735]
[1763570410490,0.1332971,89579.0,89572.0,0.00385927]
[1763570410491,0.1555446,89573.0,89572.0,7e-08]
[1763570410690,0.04382,89567.0,89566.0,3e-08]
[1763570410883,0.04601803,89567.0,89566.0,3e-08]
[1763570411079,0.02377803,89567.0,89566.0,0.04291003]
[1763570411275,0.00219803,89567.0,89566.0,0.04291003]
[1763570411990,0.04601803,89567.0,89566.0,0.04291003]
[1763570412285,0.04601803,89567.0,89566.0,3e-08]
[1763570412483,0.04601803,89567.0,89566.0,0.02131003]
[1763570412678,0.04601803,89567.0,89566.0,0.04291003]
[1763570412885,0.04601803,89567.0,89566.0,0.02131003]
[1763570413186,0.04601803,89567.0,89566.0,0.04291003]
[1763570413386,0.02443803,89567.0,89566.0,3e-08]
[1763570413580,0.00219803,89567.0,89566.0,3e-08]
[1763570415386,0.11393013,89567.0,89566.0,3e-08]
[1763570416488,0.11393013,89567.0,89566.0,0.04291003]
[1763570416793,0.15775013,89567.0,89566.0,0.04291003]
[1763570416986,0.11393013,89567.0,89566.0,3e-08]
[1763570417578,0.1555621,89559.0,89558.0,0.00016744]
[1763570417780,0.15789637,89559.0,89558.0,0.00016744]
[1763570417980,0.16188586,89559.0,89558.0,0.00016744]
[1763570418382,0.16188586,89559.0,89558.0,0.04307744]
[1763570418783,0.16188586,89559.0,89558.0,0.04407744]
[1763570419077,0.16188586,89559.0,89558.0,0.02247744]
[1763570419282,0.16188586,89559.0,89558.0,0.00116744]
[1763570419686,0.155582,89543.0,89532.0,0.01317]
[1763570419887,0.15790382,89543.0,89520.0,0.01317]
[1763570420079,0.17583233,89543.0,89532.0,0.01317]
[1763570420283,0.133362,89527.0,89526.0,0.04318925]
[1763570420483,0.11398003,89527.0,89526.0,0.04318925]
[1763570421086,0.00219803,89527.0,89526.0,0.04318925]
[1763570421288,0.00219803,89527.0,89526.0,0.00027925]
[1763570421289,0.04601803,89527.0,89526.0,0.00027925]
[1763570421690,0.111784,89526.0,89501.0,0.1118143]
[1763570421897,0.00219803,89525.0,89512.0,0.1118005]
[1763570422089,0.00219803,89525.0,89524.0,0.04291]
[1763570422295,0.00016755,89535.0,89534.0,0.04291]
[1763570422594,0.00090022,89535.0,89534.0,0.04510803]
[1763570422791,0.00012379,89543.0,89534.0,0.04510803]
[1763570422792,0.00012379,89543.0,89542.0,0.04291]
[1763570422991,0.8158377,89579.0,89563.0,0.04463]
[1763570423198,0.04335,89565.0,89564.0,0.00219803]
[1763570423387,0.15581727,89565.0,89564.0,0.00219803]
[1763570423586,0.13464727,89565.0,89564.0,0.04682803]
[1763570423786,0.15581727,89565.0,89564.0,0.00219803]
[1763570423989,0.15592152,89565.0,89564.0,0.00219803]
[1763570424397,0.15592152,89565.0,89556.0,0.00016755]
[1763570424693,0.00396171,89564.0,89557.0,0.00219803]
[1763570424893,0.00073267,89558.0,89557.0,0.04682803]
[1763570426692,0.00173267,89558.0,89557.0,0.04682803]
[1763570426896,0.00173267,89558.0,89557.0,0.05982803]
[1763570427092,0.00073267,89558.0,89557.0,0.05982803]
[1763570427395,0.02677488,89558.0,89557.0,0.04682803]
[1763570427587,0.02677488,89558.0,89557.0,0.05982803]
[1763570427588,0.00173267,89558.0,89557.0,0.05982803]
[1763570427988,0.00273267,89558.0,89557.0,0.05982803]
[1763570428707,0.00073267,89558.0,89557.0,0.05982803]
[1763570428887,0.00273267,89558.0,89557.0,0.05982803]
[1763570429084,0.1117446,89557.0,89556.0,0.00016755]
[1763570429289,0.15676727,89557.0,89556.0,0.00016755]
[1763570429596,0.17064472,89557.0,89556.0,0.00016755]
[1763570429893,0.17064472,89557.0,89521.0,0.01094755]
[1763570429894,0.1117712,89536.0,89535.0,0.04242]
[1763570430094,0.11259294,89536.0,89535.0,0.04461803]
[1763570431391,0.00082174,89536.0,89535.0,0.04461803]
[1763570431597,8.907e-05,89536.0,89535.0,0.04461803]
[1763570431786,8.907e-05,89536.0,89535.0,0.15639003]
[1763570431989,0.00016755,89544.0,89543.0,0.0434]
[1763570432298,0.00090022,89544.0,89543.0,0.04559803]
[1763570432694,0.1117443,89558.0,89557.0,0.0434]
[1763570432893,0.1117443,89558.0,89557.0,0.05894803]
[1763570432894,0.11252145,89558.0,89557.0,0.05894803]
[1763570433093,0.00077715,89558.0,89557.0,0.05894803]
[1763570433890,0.00016755,89566.0,89557.0,0.05894803]
[1763570433891,0.00016755,89566.0,89565.0,0.0434]
[1763570434092,0.00016755,89566.0,89565.0,0.04559803]
[1763570435390,0.48574863,89584.0,89575.0,0.0434]
[1763570435586,0.48574863,89584.0,89575.0,0.04559803]
[1763570435798,0.48574863,89584.0,89583.0,0.04369]
[1763570436100,0.48574863,89584.0,89583.0,0.04588803]
[1763570436101,0.51062763,89584.0,89583.0,0.04588803]
[1763570438193,0.51162763,89584.0,89583.0,0.04588803]
[1763570438388,0.001,89584.0,89583.0,0.04588803]
[1763570439199,0.02279,89584.0,89583.0,0.04588803]
[1763570439405,0.001,89584.0,89583.0,0.04588803]
[1763570440093,0.04403,89584.0,89583.0,0.04588803]
[1763570440295,0.04403,89584.0,89583.0,0.00219803]
[1763570440494,0.04303,89584.0,89583.0,0.00219803]
[1763570440794,0.04303,89584.0,89575.0,0.00016745]
[1763570440795,0.04303,89576.0,89575.0,0.00016745]
[1763570440997,0.06790729,89576.0,89575.0,0.00016745]
[1763570441293,0.06790729,89576.0,89544.0,0.01335]
[1763570441495,0.02487729,89575.0,89545.0,0.00219803]
[1763570441701,0.02487729,89574.0,89545.0,0.00219803]
[1763570441900,0.01396,89570.0,89545.0,0.00219803]
[1763570442200,0.01396,89570.0,89549.0,0.00016745]
[1763570442201,0.00044658,89566.0,89549.0,0.00016745]
[1763570442404,0.02487729,89565.0,89550.0,0.00219803]
[1763570442702,0.02487729,89564.0,89550.0,0.00219803]
[1763570442906,0.02487729,89563.0,89550.0,0.00219803]
[1763570443103,0.02487729,89562.0,89550.0,0.00219803]
[1763570443300,0.00249356,89563.0,89550.0,0.00219803]
[1763570443500,0.00595655,89561.0,89550.0,0.00219803]
[1763570443710,0.00595655,89561.0,89560.0,0.02225]
[1763570443903,0.00199482,89565.0,89560.0,0.02444803]
[1763570444208,0.00044658,89566.0,89560.0,0.00219803]
[1763570444209,0.04998402,89561.0,89560.0,0.00219803]
[1763570444602,0.02874402,89561.0,89560.0,0.04588803]
[1763570444808,0.00044658,89566.0,89560.0,0.04588803]
[1763570445007,0.04347658,89566.0,89560.0,0.00219803]
[1763570445309,0.02179,89561.0,89560.0,0.00219803]
[1763570445505,0.00044658,89566.0,89565.0,0.02225]
[1763570445707,0.00044658,89566.0,89565.0,0.04588803]
[1763570446100,0.04347658,89566.0,89565.0,0.00219803]
[1763570446301,0.00044658,89566.0,89565.0,0.04588803]
[1763570446807,0.00044658,89566.0,89565.0,0.00219803]
[1763570446808,0.04347658,89566.0,89565.0,0.00219803]
[1763570447007,0.02223658,89566.0,89565.0,0.04588803]
[1763570447304,0.00044658,89566.0,89565.0,0.04588803]
[1763570447907,0.02223658,89566.0,89565.0,0.04588803]
[1763570448098,0.04347658,89566.0,89565.0,0.04588803]
[1763570448304,0.00044658,89566.0,89565.0,0.04588803]
[1763570449413,0.04347658,89566.0,89565.0,0.04588803]
[1763570450206,0.04347658,89566.0,89565.0,0.00219803]
[1763570450401,0.04347658,89566.0,89565.0,0.04588803]
[1763570451003,0.02223658,89566.0,89565.0,0.04588803]
[1763570451908,0.04347658,89566.0,89565.0,0.04588803]
[1763570453111,0.04347658,89566.0,89565.0,0.02444803]
[1763570453709,0.04347658,89566.0,89565.0,0.00219803]
[1763570456513,0.04347658,89566.0,89550.0,0.06009721]
[1763570456514,0.04303,89551.0,89550.0,0.06009721]
[1763570456716,0.04303,89551.0,89550.0,0.00219803]
[1763570457307,0.01396,89562.0,89555.0,0.04369]
[1763570457513,0.1687283,89562.0,89561.0,0.00219803]
[1763570457909,0.19659351,89562.0,89561.0,0.00219803]
[1763570458115,0.17169265,89562.0,89561.0,0.00219803]
[1763570460206,0.00044658,89566.0,89565.0,0.04369]
[1763570460410,0.00044658,89566.0,89565.0,0.04588803]
[1763570460610,0.02223658,89566.0,89565.0,0.04588803]
[1763570460817,0.00044658,89566.0,89565.0,0.04588803]
[1763570461505,0.02223658,89566.0,89565.0,0.04588803]
[1763570461710,0.00044658,89566.0,89565.0,0.04588803]
[1763570461910,0.0534957,89595.0,89565.0,0.15762263]
[1763570462114,0.02492214,89594.0,89580.0,0.21073151]
[1763570462319,0.04814214,89593.0,89592.0,0.0441]
[1763570462512,0.02492214,89593.0,89592.0,0.04629803]
[1763570462817,0.051519,89606.0,89605.0,0.04397]
[1763570462818,0.037559,89606.0,89605.0,0.04397]
[1763570463025,0.037559,89606.0,89605.0,0.04616803]
[1763570463210,0.080959,89606.0,89605.0,0.00219803]
[1763570464214,0.040959,89606.0,89605.0,0.00219803]
[1763570464410,0.00016745,89614.0,89605.0,0.04682803]
[1763570464616,0.001,89606.0,89605.0,0.04682803]
[1763570464818,0.00016745,89614.0,89613.0,0.04463]
[1763570465019,0.01341,89639.0,89613.0,0.04463]
[1763570465020,0.01341,89639.0,89633.0,0.02317]
[1763570465222,0.0525657,89664.0,89633.0,0.04682803]
[1763570465421,0.0212,89634.0,89633.0,0.04682803]
[1763570466023,0.0212,89634.0,89633.0,0.00219803]
[1763570466024,0.0434,89634.0,89633.0,0.00219803]
[1763570467118,0.0444,89634.0,89633.0,0.00219803]
[1763570468734,0.001,89634.0,89633.0,0.04682803]
[1763570468922,0.00016735,89642.0,89641.0,0.04463]
[1763570469126,0.097,89671.0,89670.0,0.02317]